fUSD/lending_fUSD_20260526
["ID","MTS","AMOUNT","RATE_DAILY","PERIOD"]
[423051897,1779801042000,-1236.9,0.00026296,2]
[423051900,1779801042000,-866.67,0.000264,2]
[423051920,1779801042000,-423.06458,0.00027397,2]
[423051906,1779801042000,-9999.99,0.00026591,2]
[423051908,1779801042000,-10706.64684686,0.000266,2]
[423051907,1779801042000,-199.93304945,0.000266,2]
[423051910,1779801042000,-2781.82699784,0.00026851,2]
[423051909,1779801042000,-464.0,0.000267,7]
[423051911,1779801042000,-5531.0,0.000269,3]
[423051918,1779801042000,-300.0,0.00027397,2]
[423051912,1779801042000,-7768.95402003,0.00026972,2]
[423051916,1779801042000,-156.51553578,0.00027397,2]
[423051914,1779801042000,-1536.80830614,0.000273,2]
[423051913,1779801042000,-503.0,0.00027222,4]
[423051917,1779801042000,-1500.0,0.00027397,2]
[423051915,1779801042000,-2637.76376173,0.00027383,2]
[423051886,1779801042000,-156.37,0.00025743,7]
[423051901,1779801042000,-2599.99,0.000264,2]
[423051884,1779801042000,-151.0,0.00025634,2]
[423051877,1779801042000,-151.0,0.00025634,2]
[423051888,1779801042000,-2586.85809042,0.00025755,2]
[423051919,1779801042000,-423.06458,0.00027397,2]
[423051865,1779801042000,-1829.580685,0.00025634,2]
[423051862,1779801042000,-151.0,0.00025634,2]
[423051861,1779801042000,-151.0,0.00025634,2]
[423051864,1779801042000,-151.0,0.00025634,2]
[423051863,1779801042000,-151.0,0.00025634,2]
[423051860,1779801042000,-890.213499,0.00025634,2]
[423051867,1779801042000,-1829.580685,0.00025634,2]
[423051868,1779801042000,-1829.580685,0.00025634,2]
[423051866,1779801042000,-1829.580685,0.00025634,2]
[423051870,1779801042000,-151.0,0.00025634,2]
[423051879,1779801042000,-468.245213,0.00025634,2]
[423051878,1779801042000,-468.245213,0.00025634,2]
[423051887,1779801042000,-162.51,0.00025743,7]
[423051869,1779801042000,-151.0,0.00025634,2]
[423051875,1779801042000,-151.0,0.00025634,2]
[423051872,1779801042000,-230.584446,0.00025634,2]
[423051871,1779801042000,-273.6648474,0.00025634,2]
[423051874,1779801042000,-151.0,0.00025634,2]
[423051876,1779801042000,-468.245213,0.00025634,2]
[423051880,1779801042000,-151.0,0.00025634,2]
[423051881,1779801042000,-468.245213,0.00025634,2]
[423051882,1779801042000,-151.0,0.00025634,2]
[423051885,1779801042000,-155.97,0.00025743,7]
[423051892,1779801042000,-1552.75206154,0.00025903,2]
[423051883,1779801042000,-151.0,0.00025634,2]
[423051891,1779801042000,-6300.0,0.000259,9]
[423051889,1779801042000,-8020.37,0.00025786,2]
[423051873,1779801042000,-151.0,0.00025634,2]
[423051922,1779801042000,-423.06458,0.00027397,2]
[423051925,1779801042000,-151.0,0.00027397,2]
[423051924,1779801042000,-151.0,0.00027397,2]
[423051957,1779801042000,-247.0,0.0002745,2]
[423051958,1779801042000,-278.25942091,0.00027482,2]
[423051959,1779801042000,-1000.0,0.00027499,14]
[423051960,1779801042000,-866.67,0.000275,2]
[423051962,1779801042000,-2599.99,0.000275,2]
[423051961,1779801042000,-464.0,0.000275,7]
[423051963,1779801042000,-150.0,0.00027521,2]
[423051966,1779801042000,-180.57,0.00027558,2]
[423051965,1779801042000,-252.0,0.00027538,2]
[423051964,1779801042000,-335.0,0.00027527,2]
[423051968,1779801042000,-5531.0,0.000276,5]
[423051967,1779801042000,-173.74,0.00027559,2]
[423051969,1779801042000,-339.0,0.00027608,2]
[423051949,1779801042000,-2884.75459676,0.00027399,2]
[423051970,1779801042000,-150.0,0.00027608,2]
[423051971,1779801042000,-150.0,0.00027608,2]
[423051984,1779801042000,-1354.75243061,0.00027633,2]
[423051983,1779801042000,-285.09,0.00027632,30]
[423051974,1779801042000,-150.0,0.00027608,2]
[423051977,1779801042000,-155.0,0.00027608,2]
[423051979,1779801042000,-167.92,0.00027615,30]
[423051981,1779801042000,-430.87,0.00027621,30]
[423051980,1779801042000,-429.36,0.00027615,30]
[423051926,1779801042000,-361.655458,0.00027397,2]
[423051985,1779801042000,-429.36,0.00027768,7]
[423051986,1779801042000,-430.87,0.00027774,7]
[423051987,1779801042000,-281.4,0.00027778,7]
[423051988,1779801042000,-285.09,0.00027784,7]
[423051982,1779801042000,-281.4,0.00027626,30]
[423051948,1779801042000,-749.6,0.00027397,2]
[423051978,1779801042000,-168.09,0.00027609,30]
[423051954,1779801042000,-1180.32,0.000274,2]
[423051951,1779801042000,-1180.32,0.000274,2]
[423051930,1779801042000,-151.0,0.00027397,2]
[423051921,1779801042000,-423.06458,0.00027397,2]
[423051928,1779801042000,-361.655458,0.00027397,2]
[423051927,1779801042000,-361.655458,0.00027397,2]
[423051929,1779801042000,-361.655458,0.00027397,2]
[423051931,1779801042000,-151.0,0.00027397,2]
[423051932,1779801042000,-559.826168,0.00027397,2]
[423051939,1779801042000,-517.442236,0.00027397,2]
[423051937,1779801042000,-517.442236,0.00027397,2]
[423051935,1779801042000,-559.826168,0.00027397,2]
[423051938,1779801042000,-517.442236,0.00027397,2]
[423051933,1779801042000,-559.826168,0.00027397,2]
[423051936,1779801042000,-218.119822,0.00027397,2]
[423051923,1779801042000,-301.2,0.00027397,2]
[423051942,1779801042000,-1397.836603,0.00027397,2]
[423051934,1779801042000,-559.826168,0.00027397,2]
[423051955,1779801042000,-1180.32,0.000274,2]
[423051952,1779801042000,-1180.32,0.000274,2]
[423051950,1779801042000,-150.0,0.000274,14]
[423051956,1779801042000,-250.0,0.0002745,2]
[423051945,1779801042000,-5741.99,0.00027397,10]
[423051953,1779801042000,-1180.32,0.000274,2]
[423051946,1779801042000,-999.99,0.00027397,2]
[423051944,1779801042000,-1397.836603,0.00027397,2]
[423051943,1779801042000,-1397.836603,0.00027397,2]
[423051940,1779801042000,-517.442236,0.00027397,2]
[423051947,1779801042000,-3046.47,0.00027397,10]
[423051941,1779801042000,-1397.836603,0.00027397,2]
[423052024,1779801043000,-151.0,0.00028288,3]
[423052026,1779801043000,-154.0,0.00028288,3]
[423052035,1779801043000,-503.0,0.00028648,5]
[423052025,1779801043000,-151.0,0.00028288,3]
[423052020,1779801043000,-1236.9,0.00028267,2]
[423052021,1779801043000,-1544.0,0.00028288,3]
[423052015,1779801043000,-2599.99,0.000282,2]
[423052014,1779801043000,-866.67,0.000282,2]
[423052028,1779801043000,-165.2351495,0.00028472,2]
[423052022,1779801043000,-151.0,0.00028288,3]
[423052023,1779801043000,-151.0,0.00028288,3]
[423052019,1779801043000,-285.09,0.0002824,7]
[423052037,1779801043000,-500.0,0.00028798,120]
[423052029,1779801043000,-500.0,0.00028481,120]
[423052027,1779801043000,-7768.95402003,0.00028396,2]
[423052030,1779801043000,-500.0,0.00028481,30]
[423052034,1779801043000,-150.0,0.00028638,2]
[423052036,1779801043000,-188.0,0.0002872,120]
[423052039,1779801043000,-500.0,0.00028798,7]
[423052044,1779801043000,-500.0,0.00028798,30]
[423052040,1779801043000,-500.0,0.00028798,120]
[423052038,1779801043000,-500.0,0.00028798,120]
[423052042,1779801043000,-500.0,0.00028798,120]
[423052018,1779801043000,-281.4,0.00028236,7]
[423052032,1779801043000,-1252.63,0.000285,20]
[423052016,1779801043000,-429.36,0.0002823,7]
[423052000,1779801043000,-2991.49051684,0.00027947,2]
[423052012,1779801043000,-167.92,0.00028169,2]
[423052041,1779801043000,-500.0,0.00028798,120]
[423051989,1779801043000,-8380.86,0.000278,14]
[423051992,1779801043000,-1000.0,0.00027872,2]
[423051995,1779801043000,-429.36,0.00027922,2]
[423051990,1779801043000,-173.74,0.00027844,7]
[423051991,1779801043000,-180.57,0.00027844,7]
[423051994,1779801043000,-167.92,0.00027892,7]
[423051993,1779801043000,-168.09,0.00027887,7]
[423051996,1779801043000,-430.87,0.00027927,2]
[423051998,1779801043000,-503.0,0.00027935,5]
[423051997,1779801043000,-281.4,0.00027931,2]
[423052017,1779801043000,-430.87,0.00028233,7]
[423051999,1779801043000,-285.09,0.00027936,2]
[423052004,1779801043000,-150.0,0.00028079,30]
[423052003,1779801043000,-429.36,0.00028076,30]
[423052001,1779801043000,-1000.0,0.00027972,5]
[423052005,1779801043000,-430.87,0.0002808,30]
[423052007,1779801043000,-281.4,0.00028084,30]
[423052006,1779801043000,-193.44374378,0.00028082,3]
[423052008,1779801043000,-285.09,0.00028088,30]
[423052009,1779801043000,-173.75,0.0002813,30]
[423052010,1779801043000,-180.57,0.0002813,30]
[423052011,1779801043000,-168.09,0.00028165,2]
[423052013,1779801043000,-6322.5,0.000282,2]
[423052002,1779801043000,-1000.0,0.00027999,60]
[423052043,1779801043000,-500.0,0.00028798,120]
[423052099,1779801043000,-468.245213,0.00029,7]
[423052047,1779801043000,-150.0,0.00028897,2]
[423052076,1779801043000,-366.41,0.00029,2]
[423052081,1779801043000,-361.655458,0.00029,7]
[423052084,1779801043000,-151.0,0.00029,7]
[423052079,1779801043000,-5063.14,0.00029,2]
[423052078,1779801043000,-366.41,0.00029,2]
[423052082,1779801043000,-361.655458,0.00029,7]
[423052085,1779801043000,-151.0,0.00029,7]
[423052080,1779801043000,-361.655458,0.00029,7]
[423052083,1779801043000,-361.655458,0.00029,7]
[423052087,1779801043000,-559.826168,0.00029,7]
[423052086,1779801043000,-155.887086,0.00029,7]
[423052075,1779801043000,-366.41,0.00029,2]
[423052089,1779801043000,-559.826168,0.00029,7]
[423052088,1779801043000,-559.826168,0.00029,7]
[423052093,1779801043000,-468.245213,0.00029,7]
[423052097,1779801043000,-151.0,0.00029,7]
[423052092,1779801043000,-151.0,0.00029,7]
[423052090,1779801043000,-559.826168,0.00029,7]
[423052095,1779801043000,-468.245213,0.00029,7]
[423052091,1779801043000,-151.0,0.00029,7]
[423052094,1779801043000,-151.0,0.00029,7]
[423052098,1779801043000,-151.0,0.00029,7]
[423052100,1779801043000,-151.0,0.00029,7]
[423052045,1779801043000,-287.53,0.000288,14]
[423052096,1779801043000,-468.245213,0.00029,7]
[423052073,1779801043000,-5625.72,0.00029,2]
[423052077,1779801043000,-366.41,0.00029,2]
[423052070,1779801043000,-210.09156922,0.00029,2]
[423052046,1779801043000,-315.99,0.00028856,120]
[423052049,1779801043000,-517.442236,0.00028927,7]
[423052050,1779801043000,-517.442236,0.00028927,7]
[423052048,1779801043000,-8380.86,0.000289,14]
[423052051,1779801043000,-517.442236,0.00028927,7]
[423052052,1779801043000,-517.442236,0.00028927,7]
[423052053,1779801043000,-1397.836603,0.00028927,7]
[423052055,1779801043000,-1397.836603,0.00028927,7]
[423052056,1779801043000,-1397.836603,0.00028927,7]
[423052054,1779801043000,-1397.836603,0.00028927,7]
[423052072,1779801043000,-366.41,0.00029,2]
[423052058,1779801043000,-200.0,0.00029,2]
[423052057,1779801043000,-2000.0,0.00028927,120]
[423052060,1779801043000,-210.09156921,0.00029,2]
[423052061,1779801043000,-157.99,0.00029,2]
[423052068,1779801043000,-433.35,0.00029,2]
[423052062,1779801043000,-157.99,0.00029,2]
[423052074,1779801043000,-366.41,0.00029,2]
[423052071,1779801043000,-150.0,0.00029,2]
[423052067,1779801043000,-433.37,0.00029,2]
[423052069,1779801043000,-433.35,0.00029,2]
[423052064,1779801043000,-157.99,0.00029,2]
[423052065,1779801043000,-7454.0,0.00029,2]
[423052063,1779801043000,-158.01,0.00029,2]
[423052059,1779801043000,-200.0,0.00029,2]
[423052066,1779801043000,-433.35,0.00029,2]
[423052108,1779801044000,-635.18792638,0.00029009,2]
[423052102,1779801044000,-6277.54169124,0.00029009,2]
[423052101,1779801044000,-203.08193,0.00029,7]
[423052103,1779801044000,-5118.8234575,0.00029009,2]
[423052105,1779801044000,-151.0,0.00025634,2]
[423052107,1779801044000,-151.0,0.00029,7]
[423052110,1779801044000,-644.20590704,0.00029009,2]
[423052104,1779801044000,-695.6995,0.00029009,2]
[423052114,1779801044000,-603.27641542,0.00019701,2]
[423052119,1779801044000,-177.64,0.00027557,2]
[423052120,1779801044000,-10.55394065,0.00029009,2]
[423052118,1779801044000,-1552.75206154,0.00026549,2]
[423052109,1779801044000,-7576.90676975,0.00029009,2]
[423052117,1779801044000,-600.0,0.00019799,2]
[423052115,1779801044000,-1286.1401962,0.00019701,2]
[423052116,1779801044000,-963.24961597,0.00019701,2]
[423052122,1779801046000,-159.87,0.00024658,2]
[423052127,1779801046000,-282.21,0.0002762,30]
[423052124,1779801046000,-159.87,0.00025743,7]
[423052125,1779801046000,-168.09,0.00027605,30]
[423052126,1779801046000,-431.71,0.00027609,30]
[423052129,1779801046000,-282.21,0.00027773,7]
[423052128,1779801046000,-431.71,0.00027763,7]
[423052130,1779801046000,-177.64,0.00027843,7]
[423052132,1779801046000,-431.71,0.00027918,2]
[423052131,1779801046000,-168.09,0.00027884,7]
[423052133,1779801046000,-282.21,0.00027926,2]
[423052134,1779801046000,-268.01226496,0.00028072,30]
[423052135,1779801046000,-220.270076,0.00020705,2]
[423052137,1779801046000,-282.21,0.0002808,30]
[423052136,1779801046000,-163.69773504,0.00028072,30]
[423052123,1779801046000,-504.99997,0.00025082,2]
[423052139,1779801046000,-168.09,0.00028163,2]
[423052141,1779801046000,-282.21,0.00028233,7]
[423052143,1779801046000,-168.09,0.00028442,30]
[423052142,1779801046000,-431.71,0.00028381,2]
[423052144,1779801046000,-431.71,0.00028536,30]
[423052145,1779801046000,-168.09,0.00028721,7]
[423052149,1779801046000,-879.77620756,0.00029185,7]
[423052148,1779801046000,-890.213499,0.00029185,7]
[423052147,1779801046000,-9041.07080744,0.00029009,2]
[423052146,1779801046000,-168.1,0.00029,2]
[423052138,1779801046000,-177.64,0.0002813,30]
[423052140,1779801046000,-431.71,0.00028227,7]
[423052157,1779801284000,575.26,0.00028012,120]
[423052170,1779801529000,289.7376387,0.0002,120]
[423052210,1779801970000,157.71,8.684e-05,2]
[423052212,1779801995000,-166.61,0.00012953,2]
[423052213,1779801995000,-24.6898164,0.0001367,2]
[423052211,1779801995000,-157.71,0.00011579,2]
[423052218,1779802204000,150.4,0.0001,2]
[423052253,1779802232000,-150.0,0.00017082,2]
[423052255,1779802232000,-169.48,0.00017175,2]
[423052241,1779802232000,-6615.2068083,0.000165,2]
[423052261,1779802232000,-157.71,0.00017368,2]
[423052256,1779802232000,-218.21,0.000172,2]
[423052260,1779802232000,-1549.86,0.00017327,2]
[423052237,1779802232000,-322.14387569,0.0001631,2]
[423052243,1779802232000,-12468.55800342,0.000165,2]
[423052247,1779802232000,-166.66,0.00016932,2]
[423052258,1779802232000,-166.66,0.00017289,2]
[423052245,1779802232000,-167.89,0.00016712,2]
[423052249,1779802232000,-200.0,0.00017022,2]
[423052235,1779802232000,-166.61,0.00016191,2]
[423052239,1779802232000,-1023.8,0.00016438,2]
[423052234,1779802232000,-6642.33832409,0.00016164,2]
[423052230,1779802232000,-38228.28633982,0.00015,2]
[423052251,1779802232000,-231.36,0.00017073,2]
[423052232,1779802232000,-349.63344298,0.00015233,2]
[423052233,1779802232000,-500.0,0.000157,2]
[423052231,1779802232000,-8135.81924145,0.00015,2]
[423052229,1779802232000,-1000.0,0.00014999,2]
[423052226,1779802232000,-349.63344298,0.00014374,2]
[423052228,1779802232000,-166.61,0.00014572,2]
[423052227,1779802232000,-157.71,0.00014474,2]
[423052225,1779802232000,-2000.0,0.0001377,2]
[423052224,1779802232000,-236.86203765,0.0001367,2]
[423052236,1779802232000,-168.0,0.00016261,2]
[423052262,1779802232000,-1490.86,0.00017495,2]
[423052293,1779802232000,-632.93,0.00018356,2]
[423052278,1779802232000,-13732.65237771,0.00018,2]
[423052271,1779802232000,-166.61,0.0001781,2]
[423052316,1779802232000,-150.0,0.00019466,2]
[423052318,1779802232000,-931.65123692,0.00019467,2]
[423052312,1779802232000,-500.0,0.0001921,2]
[423052310,1779802232000,-678.94,0.0001921,2]
[423052309,1779802232000,-617.26242362,0.00019178,2]
[423052295,1779802232000,-166.66,0.00018358,2]
[423052296,1779802232000,-1023.8,0.0001841,2]
[423052291,1779802232000,-231.36,0.00018354,2]
[423052287,1779802232000,-500.0,0.00018096,2]
[423052306,1779802232000,-131.19757638,0.00019178,2]
[423052304,1779802232000,-5235.90873109,0.00019,2]
[423052289,1779802232000,-1801.85755275,0.000181,2]
[423052314,1779802232000,-166.61,0.00019429,2]
[423052302,1779802232000,-2498.31,0.00018842,2]
[423052301,1779802232000,-231.36,0.00018781,2]
[423052263,1779802232000,-231.36,0.000175,2]
[423052280,1779802232000,-46738.97784998,0.00018,2]
[423052269,1779802232000,-166.92,0.00017691,2]
[423052265,1779802232000,-166.66,0.00017645,2]
[423052267,1779802232000,-250.0,0.0001765,2]
[423052273,1779802232000,-231.36,0.00017927,2]
[423052284,1779802232000,-1038.43697081,0.00018,2]
[423052282,1779802232000,-1207.45412326,0.00018,2]
[423052286,1779802232000,-166.66,0.00018002,2]
[423052298,1779802232000,-166.66,0.00018714,2]
[423052276,1779802232000,-10582.11219796,0.00018,2]
[423052359,1779802233000,-500.0,0.00019799,2]
[423052348,1779802233000,-500.0,0.00019799,2]
[423052356,1779802233000,-500.0,0.00019799,2]
[423052342,1779802233000,-500.0,0.00019799,2]
[423052352,1779802233000,-500.0,0.00019799,2]
[423052351,1779802233000,-500.0,0.00019799,2]
[423052336,1779802233000,-500.0,0.00019799,2]
[423052344,1779802233000,-500.0,0.00019799,2]
[423052340,1779802233000,-500.0,0.00019799,2]
[423052324,1779802233000,-1490.86,0.00019682,2]
[423052338,1779802233000,-500.0,0.00019799,2]
[423052334,1779802233000,-500.0,0.00019799,2]
[423052330,1779802233000,-163.390817,0.00019797,2]
[423052328,1779802233000,-7981.96,0.00019731,2]
[423052326,1779802233000,-2965.08836178,0.000197,2]
[423052322,1779802233000,-262.91,0.0001952,2]
[423052320,1779802233000,-503.56250299,0.00019484,2]
[423052355,1779802233000,-500.0,0.00019799,2]
[423052346,1779802233000,-500.0,0.00019799,2]
[423052364,1779802233000,-500.0,0.00019799,2]
[423052332,1779802233000,-500.0,0.00019798,2]
[423052366,1779802233000,-468.10640747,0.00019799,2]
[423052378,1779802233000,-500.0,0.00019799,2]
[423052397,1779802233000,-674.06681493,0.000198,2]
[423052386,1779802233000,-52349.1036848,0.000198,2]
[423052394,1779802233000,-1715.81439262,0.000198,2]
[423052393,1779802233000,-380.68182096,0.000198,2]
[423052392,1779802233000,-12862.6295069,0.000198,2]
[423052396,1779802233000,-495.33231462,0.000198,2]
[423052398,1779802233000,-760.0,0.000198,2]
[423052395,1779802233000,-382.34499975,0.000198,2]
[423052388,1779802233000,-1254.41808677,0.000198,2]
[423052384,1779802233000,-500.0,0.00019799,2]
[423052382,1779802233000,-209.21338479,0.00019799,2]
[423052368,1779802233000,-500.0,0.00019799,2]
[423052380,1779802233000,-500.0,0.00019799,2]
[423052370,1779802233000,-500.0,0.00019799,2]
[423052376,1779802233000,-500.0,0.00019799,2]
[423052372,1779802233000,-501.71943586,0.00019799,2]
[423052374,1779802233000,-500.0,0.00019799,2]
[423052361,1779802233000,-500.0,0.00019799,2]
[423052390,1779802233000,-4003.62,0.000198,2]
[423052419,1779802240000,-349.63344298,0.00016091,2]
[423052421,1779802240000,-476.01388394,0.00019798,2]
[423052422,1779802240000,-397.31840626,0.00019798,2]
[423052423,1779802240000,-206.90926682,0.00019798,2]
[423052420,1779802240000,-500.0,0.00019798,2]
[423052428,1779802241000,-506.62394185,0.00019798,2]
[423052426,1779802241000,-500.0,0.00019798,2]
[423052424,1779802241000,-293.09073318,0.00019798,2]
[423052429,1779802241000,-500.0,0.00019798,2]
[423052425,1779802241000,-397.83082847,0.00019798,2]
[423052431,1779802241000,-506.62394185,0.00019798,2]
[423052427,1779802241000,-506.62394185,0.00019798,2]
[423052435,1779802241000,-500.0,0.00019798,2]
[423052434,1779802241000,-506.62394185,0.00019798,2]
[423052433,1779802241000,-500.0,0.00019798,2]
[423052430,1779802241000,-500.0,0.00019798,2]
[423052436,1779802241000,-506.62394185,0.00019798,2]
[423052437,1779802241000,-430.11528207,0.00019798,2]
[423052432,1779802241000,-506.62394185,0.00019798,2]
[423052465,1779802242000,-506.62394185,0.00019798,2]
[423052462,1779802242000,-506.62394185,0.00019798,2]
[423052466,1779802242000,-506.62394185,0.00019798,2]
[423052469,1779802242000,-506.62394185,0.00019798,2]
[423052470,1779802242000,-506.62394185,0.00019798,2]
[423052479,1779802242000,-506.62394185,0.00019798,2]
[423052480,1779802242000,-506.62394185,0.00019798,2]
[423052471,1779802242000,-506.62394185,0.00019798,2]
[423052464,1779802242000,-506.62394185,0.00019798,2]
[423052476,1779802242000,-506.62394185,0.00019798,2]
[423052472,1779802242000,-506.62394185,0.00019798,2]
[423052478,1779802242000,-506.62394185,0.00019798,2]
[423052477,1779802242000,-506.62394185,0.00019798,2]
[423052473,1779802242000,-506.62394185,0.00019798,2]
[423052468,1779802242000,-506.62394185,0.00019798,2]
[423052467,1779802242000,-506.62394185,0.00019798,2]
[423052457,1779802242000,-506.62394185,0.00019798,2]
[423052459,1779802242000,-500.0,0.00019798,2]
[423052475,1779802242000,-506.62394185,0.00019798,2]
[423052453,1779802242000,-506.62394185,0.00019798,2]
[423052454,1779802242000,-500.0,0.00019798,2]
[423052446,1779802242000,-69.88471793,0.00019798,2]
[423052455,1779802242000,-506.62394185,0.00019798,2]
[423052450,1779802242000,-500.0,0.00019798,2]
[423052447,1779802242000,-506.62394185,0.00019798,2]
[423052449,1779802242000,-506.62394185,0.00019798,2]
[423052448,1779802242000,-500.0,0.00019798,2]
[423052452,1779802242000,-500.0,0.00019798,2]
[423052451,1779802242000,-506.62394185,0.00019798,2]
[423052456,1779802242000,-500.0,0.00019798,2]
[423052458,1779802242000,-500.0,0.00019798,2]
[423052461,1779802242000,-506.62394185,0.00019798,2]
[423052460,1779802242000,-165.79330767,0.00019798,2]
[423052463,1779802242000,-506.62394185,0.00019798,2]
[423052474,1779802242000,-506.62394185,0.00019798,2]
[423052494,1779802242000,-221.0,0.0002,2]
[423052484,1779802242000,-506.62394185,0.00019798,2]
[423052500,1779802242000,-296.0,0.0002,2]
[423052505,1779802242000,-232.0,0.0002,2]
[423052512,1779802242000,-16263.11811533,0.0002,2]
[423052507,1779802242000,-25938.27212302,0.0002,2]
[423052510,1779802242000,-3950.0,0.0002,2]
[423052514,1779802242000,-486.86146724,0.0002,2]
[423052509,1779802242000,-576.0,0.0002,2]
[423052501,1779802242000,-1554.6694724,0.0002,2]
[423052515,1779802242000,-49733.67749869,0.0002,2]
[423052516,1779802242000,-13100.9286356,0.0002,2]
[423052517,1779802242000,-152.0,0.0002,2]
[423052518,1779802242000,-300.37976849,0.0002,2]
[423052519,1779802242000,-387.0,0.0002,2]
[423052522,1779802242000,-290.89192438,0.0002,2]
[423052481,1779802242000,-506.62394185,0.00019798,2]
[423052502,1779802242000,-178.8908017,0.0002,2]
[423052503,1779802242000,-261.0,0.0002,2]
[423052520,1779802242000,-290.89192439,0.0002,2]
[423052498,1779802242000,-235.0,0.0002,2]
[423052483,1779802242000,-506.62394185,0.00019798,2]
[423052496,1779802242000,-153.0,0.0002,2]
[423052485,1779802242000,-506.62394185,0.00019798,2]
[423052489,1779802242000,-506.62394185,0.00019798,2]
[423052486,1779802242000,-506.62394185,0.00019798,2]
[423052487,1779802242000,-506.62394185,0.00019798,2]
[423052488,1779802242000,-506.62394185,0.00019798,2]
[423052492,1779802242000,-35655.83165608,0.000198,2]
[423052491,1779802242000,-506.62394185,0.00019798,2]
[423052497,1779802242000,-487.0,0.0002,2]
[423052499,1779802242000,-226.0,0.0002,2]
[423052482,1779802242000,-506.62394185,0.00019798,2]
[423052490,1779802242000,-506.62394185,0.00019798,2]
[423052493,1779802242000,-154965.79692257,0.000198,2]
[423052495,1779802242000,-189.0,0.0002,2]
[423052571,1779802243000,-500.0,0.00021335,2]
[423052568,1779802243000,-151.0,0.00021335,2]
[423052561,1779802243000,-151.0,0.00021335,2]
[423052570,1779802243000,-151.0,0.00021335,2]
[423052558,1779802243000,-200.0,0.00021335,2]
[423052562,1779802243000,-500.0,0.00021335,2]
[423052566,1779802243000,-151.0,0.00021335,2]
[423052564,1779802243000,-151.0,0.00021335,2]
[423052569,1779802243000,-500.0,0.00021335,2]
[423052565,1779802243000,-500.0,0.00021335,2]
[423052560,1779802243000,-151.0,0.00021335,2]
[423052567,1779802243000,-500.0,0.00021335,2]
[423052563,1779802243000,-1798.80895522,0.00021335,2]
[423052576,1779802243000,-500.0,0.00021335,2]
[423052575,1779802243000,-500.0,0.00021335,2]
[423052573,1779802243000,-500.0,0.00021335,2]
[423052579,1779802243000,-500.0,0.00021335,2]
[423052577,1779802243000,-151.0,0.00021335,2]
[423052581,1779802243000,-151.0,0.00021335,2]
[423052572,1779802243000,-151.0,0.00021335,2]
[423052582,1779802243000,-500.0,0.00021335,2]
[423052583,1779802243000,-151.0,0.00021335,2]
[423052584,1779802243000,-521.20369368,0.00021335,2]
[423052585,1779802243000,-151.0,0.00021335,2]
[423052595,1779802243000,-432.15386025,0.00021599,2]
[423052559,1779802243000,-503.9403209,0.00021335,2]
[423052594,1779802243000,-500.0,0.00021599,2]
[423052574,1779802243000,-151.0,0.00021335,2]
[423052555,1779802243000,-931.65123692,0.00021035,2]
[423052540,1779802243000,-221.0,0.00021,2]
[423052553,1779802243000,-199.72580475,0.00021,2]
[423052593,1779802243000,-397.70305925,0.00021599,2]
[423052527,1779802243000,-436.33788657,0.0002,2]
[423052526,1779802243000,-436.33788657,0.0002,2]
[423052524,1779802243000,-436.33788659,0.0002,2]
[423052525,1779802243000,-436.33788657,0.0002,2]